Cogmind - Beta 16 @@@ ROGUE MODE // 2025.11.01 @ 09:49:38 Player: abnormality Result: Self-destructed Performance ------------- Evolutions (2) 1000 Regions Visited (3) 600 Robots Destroyed (8) 40 Value Destroyed (226) 226 Prototype IDs (0) 0 Alien Tech Used (0) 0 Bonus (0) 0 TOTAL SCORE: 1866 Bonus ------- None Cogmind --------- Core Integrity 467/550 Matter 188/300 Energy 125/125 System Corruption 0% Temperature Hot (259) Movement Treading (240) Ox1 Location -8/Materials Parts ------- > --- POWER (2) -------- Light Ion Engine > --- PROPULSION (2) --- Light Treads Light Treads > --- UTILITY (4) ------ Medium Storage Unit Large Storage Unit Improved Terrain Scanner Seismic Detector > --- WEAPON (3) ------- Ion Cannon Light Cannon > --- INVENTORY (15) --- Light Ion Engine Light Ion Engine Light Ion Engine Small Storage Unit Assault Rifle Light Assault Rifle Light Cannon Peak State ------------ > --- POWER ------------ Light Ion Engine > --- PROPULSION ------- Light Treads Light Treads > --- UTILITY ---------- Small Storage Unit Medium Storage Unit Improved Terrain Scanner Seismic Detector > --- WEAPON ----------- Ion Cannon Assault Rifle Light Cannon > --- INVENTORY -------- Light Ion Engine Light Ion Engine Light Ion Engine Assault Rifle Light Assault Rifle Light Cannon [Rating: 14] Favorites ----------- Power Light Ion Engine Engine Light Ion Engine Propulsion Light Treads Treads Light Treads Utility Seismic Detector Device Seismic Detector Storage Small Storage Unit Weapon Assault Rifle Energy Cannon Ion Cannon Ballistic Gun Assault Rifle Ballistic Cannon Light Cannon Build | -11 -10 -10 -8 ------- Run | Yrd Mat Sub Mat Slots Evolved 4 | . . . 4 Power 1 | . . . 1 Propulsion . | . . . . Utility 2 | . . . 2 Weapon 1 | . . . 1 Parts Attached 13 | 7 2 . 4 Power 1 | 1 . . . Engine 1 | 1 . . . Core . | . . . . Reactor . | . . . . Propulsion 2 | 2 . . . Treads 2 | 2 . . . Leg . | . . . . Wheel . | . . . . Hover . | . . . . Flight . | . . . . Utility 5 | 2 . . 3 Device 2 | 1 . . 1 Storage 3 | 1 . . 2 Processor . | . . . . Hackware . | . . . . Protection . | . . . . Artifact . | . . . . Weapon 5 | 2 2 . 1 Energy Gun . | . . . . Energy Cannon 1 | . . . 1 Ballistic Gun 3 | 2 1 . . Ballistic Cannon 1 | . 1 . . Launcher . | . . . . Special Weapon . | . . . . Impact Weapon . | . . . . Slashing Weapon . | . . . . Piercing Weapon . | . . . . Special Melee Weapon . | . . . . Unidentified Prototypes . | . . . . Parts Lost 1 | . . . 1 Power . | . . . . Propulsion . | . . . . Utility . | . . . . Weapon 1 | . . . 1 Highest Loss Streak 1 | . . . 1 To Critical Strikes . | . . . . Average Backups 6 | 2 6 7 6 Power 2 | 1 3 3 3 Propulsion . | . . . . Utility . | . 1 1 . Weapon 2 | . 2 3 3 Tool/Special . | . . . . Unused Backups 4 | . . . 4 Power 3 | . . . 3 Propulsion . | . . . . Utility . | . . . . Weapon 1 | . . . 1 Tool/Special . | . . . . Average Slot Usage (%) 94 | . 100 100 83 Engine 12 | . 14 14 9 Treads 24 | . 28 28 18 Device 14 | . 14 14 16 Storage 14 | . 14 14 15 Energy Cannon 2 | . . . 7 Ballistic Gun 13 | . 17 14 9 Ballistic Cannon 11 | . 10 14 9 Peak Build Rating 14 | 7 7 7 14 Average Rating 8 | 5 7 7 12 On Entrance 5 | . 7 7 7 Avg Prop Armor Cover (%) . | . . . . Naked Turns . | . . . . Heaviest Build 46 | 12 14 14 46 Greatest Support 40 | 40 40 40 40 Greatest Overweight (x) 1 | . . . 1 Average Overweight (x) . | . . . . Largest Inventory Capacity 15 | 8 8 8 15 Average Capacity 9 | 7 8 8 13 Most Carried 8 | 5 7 7 8 Average Carried 6 | 2 6 7 6 Final Capacity 15 | 8 8 8 15 Final Carried 7 | 4 7 7 7 Class Distribution -------------------- 77% | Mutant 22% | Skirmisher Dominant Class ---------------- Mutant | -10/Materials Mutant | -10/Subcaves Skirmisher | -8/Materials Resources | -11 -10 -10 -8 ----------- Run | Yrd Mat Sub Mat Matter Collected 389 | 306 . 83 . Remotely . | . . . . Salvage Created 301 | 97 . 66 138 Parts 23 | 5 . 6 12 Haulers Intercepted . | . . . . Recyclers Shooed . | . . . . Parts Field Recycled . | . . . . Retrieved Matter . | . . . . Parts Self-Destructed 3 | . . 3 . Prevented . | . . . . Parts Restored . | . . . . Kills | -11 -10 -10 -8 ------- Run | Yrd Mat Sub Mat Combat Hostiles Destroyed 4 | . . 2 2 Guns 1 | . . 1 . Cannons 3 | . . 1 2 Classes Destroyed 7 | 2 . 2 3 Worker 1 | . . . 1 Tunneler 1 | 1 . . . Recycler 1 | 1 . . . Watcher 1 | . . . 1 Grunt 1 | . . . 1 Sentry 2 | . . 1 1 Subdweller 1 | . . 1 . Best Kill Streak 4 | 1 . 1 4 Combat Bots Only 2 | . . 1 2 Max Kills in Single Turn 1 | 1 . 1 1 Gunslinging . | . . . . Exploded . | . . . . Melee . | . . . . Uniques/NPCs Destroyed . | . . . . Combat | -11 -10 -10 -8 -------- Run | Yrd Mat Sub Mat Hostile Shots Fired 45 | . . 14 31 Missed 17 | . . 7 10 Hits 28 | . . 7 21 Projectile 28 | . . 7 21 Damage Taken 486 | . . 157 329 Core 105 | . . 22 83 Absorbed by Shields . | . . . . Core Remaining (%) 95 | 100 . 91 . Volleys Fired 29 | 9 2 7 11 Largest 3 | 2 2 2 3 Hottest 110 | 40 50 50 110 Shots Fired 69 | 18 4 14 33 Gun 38 | 18 2 7 11 Cannon 31 | . 2 7 22 Launcher . | . . . . Special . | . . . . Kinetic 58 | 18 4 14 22 Thermal 11 | . . . 11 Explosive . | . . . . Electromagnetic . | . . . . Robot Hit Streak 7 | 7 2 5 7 Robot Miss Streak 3 | 2 2 2 3 Penetration Max . | . . . . Secondary Targets . | . . . . Shots Hit Robots 42 | 11 2 9 20 Core Hits 17 | 4 . 4 9 Critical Kills . | . . . . Critical Parts Destroyed . | . . . . Critical Strikes 1 | . . . 1 Blast 1 | . . . 1 Melee Attacks . | . . . . Impact . | . . . . Slashing . | . . . . Piercing . | . . . . Sneak Attacks . | . . . . Combat Hostiles . | . . . . Follow-up Attacks . | . . . . Damage Inflicted 658 | 108 34 135 381 Guns 241 | 108 14 49 70 Cannons 417 | . 20 86 311 Explosions . | . . . . Melee . | . . . . Ramming . | . . . . Kinetic 472 | 108 34 135 195 Thermal 186 | . . . 186 Explosive . | . . . . Electromagnetic . | . . . . Impact . | . . . . Slashing . | . . . . Piercing . | . . . . Highest Corruption . | . . . . Average Corruption . | . . . . Corruption Purged . | . . . . Corruption Blocked . | . . . . Overload Shots . | . . . . Overflow Damage . | . . . . Projectiles . | . . . . Explosions . | . . . . Melee . | . . . . Knockbacks 1 | . . . 1 Impact . | . . . . Kinetic 1 | . . . 1 Secondary . | . . . . Self-Inflicted Damage . | . . . . Shots . | . . . . Rammed . | . . . . Targets Rammed . | . . . . Kicked . | . . . . Crushed . | . . . . Highest Temperature 273 | . . . 273 Average Temperature 92 | . . . 92 Received Heat Transfer 210 | . . 30 180 Siege Activations . | . . . . Martial Activations . | . . . . Shielding Activations . | . . . . Robots Disrupted . | . . . . Combat Hostiles . | . . . . Robots Corrupted . | . . . . Combat Hostiles . | . . . . Parts Fried . | . . . . Impact Corruptions . | . . . . Robots Melted . | . . . . Combat Hostiles . | . . . . Parts Melted . | . . . . Heat Transferred 296 | . . . 296 Parts Sabotaged . | . . . . Parts Stolen . | . . . . Parts Stripped . | . . . . Power Chain Reactions . | . . . . Alert | -11 -10 -10 -8 ------- Run | Yrd Mat Sub Mat Maximum Alert Level . | . . . . Low Security (%) 100 | 100 100 . 100 Level 1 . | . . . . Level 2 . | . . . . Level 3 . | . . . . Level 4 . | . . . . Level 5 . | . . . . High Security . | . . . . Max Security . | . . . . Peak Influence 48 | 5 2 . 48 Initial . | . . . . Average 3 | . . . 7 Influence Increases 126 | 10 2 20 94 Destroy 0b10 Robot/C 60 | . . 20 40 Destroy 0b10 Robot/NC 20 | 10 . . 10 Destroy Leader 12 | . . . 12 Successful Hack 17 | . 2 . 15 Disable Machine 15 | . . . 15 Destroy Structure 2 | . . . 2 Influence Decreases 92 | 10 2 20 60 Time Decay 79 | 10 2 20 47 Lost Part 10 | . . . 10 Purge Threat 3 | . . . 3 Squads Dispatched 1 | . . . 1 Investigation 1 | . . . 1 Extermination . | . . . . Reinforcement . | . . . . Assault . | . . . . Garrison . | . . . . Intercept . | . . . . Searches Triggered . | . . . . Construction Impeded . | . . . . Haulers Reinforced . | . . . . Active Scanning Responses . | . . . . Cargo Convoy Interrupts . | . . . . Stealth | -11 -10 -10 -8 --------- Run | Yrd Mat Sub Mat Distress Signals 1 | . . . 1 Communications Jammed . | . . . . Distress Signals . | . . . . Times Spotted 12 | . 1 2 9 Peak Tracking Total 6 | . 2 1 6 Tactical Retreats . | . . . . Traps | -11 -10 -10 -8 ------- Run | Yrd Mat Sub Mat Traps Triggered 1 | . . 1 . Indirectly . | . . . . Trap Hack Attempts . | . . . . Triggered . | . . . . Disarmed . | . . . . Reprogrammed . | . . . . Reused . | . . . . Traps Extracted . | . . . . Installed . | . . . . Triggered . | . . . . Machines | -11 -10 -10 -8 ---------- Run | Yrd Mat Sub Mat Machines Disabled 1 | . . . 1 Max in Single Turn 1 | . . . 1 Machines Repaired . | . . . . Machines Dismantled . | . . . . Machines Sabotaged . | . . . . Overloaded Fab Kills . | . . . . Hacking | -11 -10 -10 -8 --------- Run | Yrd Mat Sub Mat Machines Accessed 5 | . 1 . 4 Terminals 5 | . 1 . 4 Fabricators . | . . . . Repair Stations . | . . . . Recycling Units . | . . . . Scanalyzers . | . . . . Garrison Access . | . . . . Total Hacks 14 | . 1 . 13 Successful 9 | . 1 . 8 Failed 5 | . . . 5 Catastrophic . | . . . . Database Lockouts . | . . . . Manual . | . . . . Terminals 14 | . 1 . 13 Fabricators . | . . . . Repair Stations . | . . . . Recycling Units . | . . . . Scanalyzers . | . . . . Garrison Access . | . . . . Terminal Hacks 9 | . 1 . 8 Record 1 | . 1 . . Branch Access Points 1 | . . . 1 Emergency Access Points 2 | . . . 2 Alert Level 1 | . . . 1 Unreport Threat 1 | . . . 1 Locate Traps 2 | . . . 2 Patrol Status 1 | . . . 1 Fabricator Hacks . | . . . . Repair Station Hacks . | . . . . Recycling Unit Hacks . | . . . . Scanalyzer . | . . . . Garrison Access Hacks . | . . . . Unauthorized Hacks . | . . . . Terminals . | . . . . Fabricators . | . . . . Repair Stations . | . . . . Recycling Units . | . . . . Scanalyzers . | . . . . Garrison Access . | . . . . Data Cores Recovered . | . . . . Used . | . . . . Hacking Detections 3 | . 1 . 2 Full Trace Events 1 | . . . 1 Feedback Events . | . . . . Feedback Blocked . | . . . . Robot Schematics Acquired . | . . . . Robots Built . | . . . . Authchips . | . . . . Time . | . . . . Total Robot Build Rating . | . . . . Part Schematics Acquired . | . . . . Parts Built . | . . . . Authchips . | . . . . Time . | . . . . Total Part Build Rating . | . . . . Part Studies Acquired . | . . . . Parts Repaired . | . . . . Time . | . . . . Parts Recycled . | . . . . Recycled Matter . | . . . . Retrieved Matter . | . . . . Retrieved Components . | . . . . Parts Scanalyzed . | . . . . Part Schematics Acquired . | . . . . Parts Damaged . | . . . . Bothacking | -11 -10 -10 -8 ------------ Run | Yrd Mat Sub Mat Used RIF Installer . | . . . . Robots Hacked . | . . . . Non-combat . | . . . . Combat . | . . . . Robot Hacks Applied . | . . . . Relay Couplers Released . | . . . . Fabnet Peak Effective % . | . . . . Robots Rewired . | . . . . Allies Hacked . | . . . . Hacks Repelled . | . . . . Allies | -11 -10 -10 -8 -------- Run | Yrd Mat Sub Mat Total Allies . | . . . . Largest Group . | . . . . Highest-Rated Group . | . . . . Highest-Rated Ally . | . . . . Total Orders . | . . . . Ally Attacks . | . . . . Total Damage . | . . . . Kills . | . . . . Allies Corrupted . | . . . . Allies Melted . | . . . . Intel | -11 -10 -10 -8 ------- Run | Yrd Mat Sub Mat Active Infowar (turns) 686 | 8 172 289 217 Terrain 179 | . . . 179 Seismic 686 | 8 172 289 217 Robot Analysis Total . | . . . . Derelict Logs Recovered . | . . . . Drone Launches . | . . . . Drone Recoveries . | . . . . Exploration | -11 -10 -10 -8 ------------- Run | Yrd Mat Sub Mat Turns Passed 803 | 125 172 289 217 Spaces Moved 389 | 68 71 167 83 Core 23 | 23 . . . Treads 366 | 45 71 167 83 Legs . | . . . . Wheels . | . . . . Hover . | . . . . Flight . | . . . . Fastest Speed 50 | 50 160 160 160 Average Speed 163 | 122 160 160 209 Slowest Speed 240 | 160 160 160 240 Overloaded Moves . | . . . . Propulsion Burnouts . | . . . . Robots Hopped . | . . . . Potential Cave-ins . | . . . . Cave-ins Triggered . | . . . . Exploration Rate (%) 10 | 5 17 11 10 Regions Visited 3 Branch Regions 1 Pre-discovered Areas . | . . . . Known Exits Taken . | . . . . Unknown Exits Taken 3 | 1 1 1 . Scrap Searched . | . . . . Spaces Dug . | . . . . Terrain Destroyed . | . . . . Melee . | . . . . Projectile . | . . . . AOE . | . . . . Terrain Rammed . | . . . . Walls Destroyed . | . . . . Machines Disabled . | . . . . Actions | -11 -10 -10 -8 --------- Run | Yrd Mat Sub Mat Total 491 | 92 125 173 101 Wait 48 | . 48 . . Move 386 | 67 70 166 83 Hop . | . . . . Pick Up 15 | 9 3 . 3 Fast Attach 2 | 2 . . . Attach 8 | 5 . . 3 Detach . | . . . . Swap 3 | . 2 . 1 Drop . | . . . . Fire 29 | 9 2 7 11 Melee . | . . . . Ram . | . . . . Kick . | . . . . Crush . | . . . . Escape Stasis . | . . . . Rewire . | . . . . Trap . | . . . . Miscellaneous . | . . . . Route ------- -11/Scrapyard -10/Materials -10/Subcaves -8/Materials History --------- Turn | Location | Event 9 | -11/Scrapyard | Discovered new exit (range 16) 126 | -11/Scrapyard | Entered Materials 276 | -10/Materials | Discovered new exit (range 4) 298 | -10/Materials | Entered Subcaves 315 | -10/Subcaves | Build established: Mutant 566 | -10/Subcaves | Discovered new exit (range 8) 587 | -10/Subcaves | Entered Materials 587 | -8/Materials | Evolved 4 slots: Power x1, Utility x2, Weapon x1 804 | -8/Materials | Self-destructed Last Messages --------------- No branch access points found. 00726_ K-01 Serf cleans the Terminal. 00729_ K-01 Serf collects debris. 00729_ K-01 Serf cleans the Terminal. 00758_ W-25 Informer sends out distress signal. 00760_ W-25 Informer destroyed. 00762_ K-01 Serf collects debris. 00765_ G-47 Trooper destroyed. 00769_ K-01 Serf collects debris. 00780_ Y-45 Defender destroyed. 00781_ U-05 Engineer builds a Door. 00783_ K-01 Serf collects debris. 00786_ G-47 Trooper knocked back. 00787_ U-05 Engineer builds a Door. 00787_ K-01 Serf collects debris. 00789_ K-01 Serf destroyed. 00789_ K-01 Serf collects debris. 00792_ G-47 Trooper suffers critical hit (Blast). 00792_ Destroyed Lgt. Nuclear Core. 00801_ Assault Rifle destroyed. Map ----- +----------------------------------------------------+ | ?????????????????????????????????????????????????? | | ?????????????????????????????????????????????????? | | ?????????????????????????????????????????????????? | | ????????????????????????? ???????????????????????? | | ?????????????????????????????????????????????????? | | ?????????????????????????????????????????????????? | | ?????????????????????????????????????????????????? | | ?????????????????????????????????????????????????? | | ?????????????????????#?#?????????????????????????? | | ?????????????????????????????????????????????????? | | ??????????????????? ???????????? ???????????????? | | ?????????????????????? ??????????????????????????? | | ??????????????????????????????? ??????"??????????? | | ??????????????????????????? ?????????????????????? | | ???????????????????#####????? ??????????? ??#????? | | ??????????????????##"""#??#####??????????????????? | | ????????????? ??####"T"####T#####??#?????????????? | | ???????????? ?#! ###????????#?????? | | ????????????? %!#a^ % ""#??#???????????? | | ???????? ?? =g*!! """ " T"#??????????????? | | ????????? #%% """ T ""#??????????#???? | | ????????? ???#=g^ " ^ " ###??????????????? | | ????????????????##k #???????#??????#?? | | ?????????????????# ^ #?#???#????????#?? | | ????????????+???##k ###########??????? | | ?????????? gg ! @ !##?????? | | ?????????? # [ !#?????? | | ???????????????? # k !#?????? | | ?????????????????# #""T""###### #?#???? | | ?????????????????# #"""""#??#?# #?????? | | ?????????????????# #######????# !##?????? | | ???????????????? # ???##?#???## ####??????# | | ???????????????? # ????######### #?????????? | | ?????????????????# ??##?# # #?????????? | | ???????????????#?# ? ????#% """ # #?????????? | | ????????????????? ? ????# """ + #?????????? | | ????????????????###+#?????### """ # #????????#? | | ??????????????????????? #???# # #?????????? | | ????????????????????????????# # #####?????? | | ????????????????????????##??######## #?????? | | ??????????????????????????#????????# #?????# | | ???????????????????????????????????# #?????? | | ???????????????????????????????#???##########????? | | ?????????????????????????????????????????????????? | | ?????????????????????????????????????????????????? | | ?????????????????????????????????????????????????? | | ?????????????????????????????????????????????????? | | ?????????????????????????????????????????????????? | | | | | +----------------------------------------------------+ Best States ------------- Heat Dissipation 31 Energy Generation 10 Energy Capacity 125 Matter Stores 300 Matter Capacity 300 Sight Range 16 Terrain Scan Range 16 Terrain Scan Density 10 Evasion (%) 50 Recoil Reduction 2 Item Schematics ----------------- None Robot Schematics ------------------ None Fabricated ------------ Nothing Repaired ---------- Nothing Studied --------- None Alien Tech Used ----------------- None Achievements -------------- None Challenges ------------ None Game ------ Seed ParticleTargetingNeutralizer Manual? 0 Play Time 00:07:20 Cumulative 38.1 hours Start 2025.10.27 @ 13:28:49 End 2025.11.01 @ 09:49:38 Sessions 3 Manual Loads 0 Difficulty Rogue Special Mode None Game No. 161 Rogue 161 Adventurer 0 Explorer 0 Win Type - Total 0 Types 0/0/0/0/0/0/0/0/0/0 Lore% 29 Gallery% 28 Achievement% 17 Wizard Run 0 Options --------- Layout 0 ASCII 0 Keyboard 0 Movement Mouse Keybinds 0 Fullscreen 1 Font 18/X11 Map View 38x25 Zoom Use 94% Tactical HUD 1 Map Filters NONE Filters NONE Steam 1 RUN: ea866d4c-c19f-411f-89ef-0a819682fb4a